bitfinex/quotes_BTCUSD_20250316
["timestamp","ask_amount","ask_price","bid_price","bid_amount"]
[1742143125728,0.249457,84183.0,84179.0,0.00041049]
[1742143125920,0.005,84180.0,84179.0,0.24987749]
[1742143126123,0.005,84180.0,84179.0,0.00041049]
[1742143126320,0.016879,84180.0,84179.0,0.00041049]
[1742143126521,0.316879,84180.0,84179.0,0.00041049]
[1742143127143,0.32905139,84180.0,84179.0,0.00041049]
[1742143127340,0.316879,84180.0,84179.0,0.00041049]
[1742143127801,0.316879,84180.0,84179.0,0.00441049]
[1742143128461,0.316879,84180.0,84179.0,0.00041049]
[1742143128856,0.005,84180.0,84179.0,0.00041049]
[1742143129438,0.005,84180.0,84179.0,0.01228949]
[1742143129634,0.005,84180.0,84179.0,0.00041049]
[1742143129830,0.005,84180.0,84179.0,0.00341049]
[1742143130036,0.005,84183.0,84182.0,0.249459]
[1742143130292,0.005,84183.0,84179.0,0.01228949]
[1742143130488,0.24258,84183.0,84179.0,0.00141049]
[1742143130751,0.005,84183.0,84180.0,0.011879]
[1742143131298,0.02362107,84183.0,84180.0,0.011879]
[1742143131515,0.02462107,84183.0,84180.0,0.011879]
[1742143131703,0.02462107,84183.0,84181.0,0.237581]
[1742143132180,0.02479077,84183.0,84179.0,0.00174989]
[1742143132405,0.26236977,84183.0,84179.0,0.00174989]
[1742143132600,0.005,84180.0,84179.0,0.25121589]
[1742143132884,0.005,84180.0,84179.0,0.25021589]
[1742143133688,0.005,84180.0,84179.0,0.25121589]
[1742143133926,0.005,84180.0,84179.0,0.25021589]
[1742143134331,0.006,84180.0,84179.0,0.25121589]
[1742143134725,0.007,84180.0,84179.0,0.25321589]
[1742143136343,0.002,84180.0,84179.0,0.26775674]
[1742143136602,0.002,84180.0,84179.0,0.39645674]
[1742143137455,0.0001697,84183.0,84182.0,0.26399985]
[1742143137822,0.0001697,84183.0,84182.0,0.26199985]
[1742143138687,0.0001697,84183.0,84182.0,0.26099985]
[1742143139425,0.0001697,84183.0,84182.0,0.29642084]
[1742143139853,7e-07,84183.0,84182.0,0.59642084]
[1742143140054,7e-07,84183.0,84182.0,0.60242084]
[1742143140256,7e-07,84183.0,84182.0,0.60842084]
[1742143140458,0.005,84216.0,84215.0,0.249361]
[1742143141037,0.02361393,84216.0,84215.0,0.249361]
[1742143141796,0.242524,84202.0,84201.0,0.00885232]
[1742143142005,0.005,84185.0,84183.0,0.011878]
[1742143142205,0.005,84190.0,84188.0,0.011878]
[1742143142409,0.005,84193.0,84192.0,0.249429]
[1742143142615,0.005,84190.0,84188.0,0.011878]
[1742143142811,0.011877,84195.0,84183.0,0.24986549]
[1742143142812,0.005,84184.0,84183.0,0.24986549]
[1742143144193,0.02361915,84184.0,84183.0,0.24986549]
[1742143144395,0.02361915,84184.0,84183.0,0.25586549]
[1742143144795,0.01861915,84184.0,84183.0,0.27640634]
[1742143146642,0.0001697,84185.0,84184.0,0.02641885]
[1742143147664,0.0051697,84185.0,84184.0,0.011878]
[1742143147869,0.0001697,84185.0,84184.0,0.02641885]
[1742143148046,0.0001697,84185.0,84184.0,0.02760648]
[1742143148499,7e-07,84185.0,84184.0,0.45451885]
[1742143148673,7e-07,84185.0,84184.0,0.49696946]
[1742143149051,7e-07,84185.0,84184.0,1.99696946]
[1742143149837,7e-07,84185.0,84184.0,0.49696946]
[1742143150047,7e-07,84185.0,84184.0,0.46651885]
[1742143150255,7e-07,84185.0,84184.0,0.45451885]
[1742143150457,0.005,84219.0,84218.0,0.249351]
[1742143150653,0.005,84216.0,84215.0,0.165954]
[1742143150854,0.005,84216.0,84215.0,0.403438]
[1742143151434,0.005,84225.0,84224.0,0.249333]
[1742143152010,0.005,84227.0,84226.0,0.237456]
[1742143152224,0.005,84227.0,84226.0,0.23864309]
[1742143152399,0.15404,84259.0,84227.0,0.011872]
[1742143152598,6e-07,84228.0,84227.0,0.02641285]
[1742143153840,6e-07,84228.0,84227.0,0.0275998]
[1742143154041,6e-07,84228.0,84227.0,0.0335998]
[1742143154490,6e-07,84228.0,84227.0,0.4164998]
[1742143154758,6e-07,84228.0,84227.0,1.22145285]
[1742143154997,0.0051697,84265.0,84264.0,0.011867]
[1742143155249,0.0051697,84265.0,84264.0,0.249216]
[1742143155496,0.00029315,84265.0,84264.0,0.249216]
[1742143155734,0.02389659,84265.0,84264.0,0.26129225]
[1742143156984,0.02389659,84265.0,84264.0,0.26329225]
[1742143157209,0.02389659,84265.0,84264.0,0.249216]
[1742143157720,0.01889659,84265.0,84264.0,0.26975685]
[1742143157985,0.00029315,84265.0,84264.0,0.28191399]
[1742143158248,1.5e-07,84265.0,84264.0,1.78791399]
[1742143158489,1.5e-07,84265.0,84264.0,1.78191399]
[1742143159141,0.00016985,84265.0,84264.0,1.78191399]
[1742143160109,0.00516985,84265.0,84264.0,0.409136]
[1742143160265,0.00516985,84265.0,84264.0,0.415136]
[1742143160459,0.00516985,84265.0,84264.0,0.403136]
[1742143160708,0.00516985,84265.0,84264.0,0.409136]
[1742143160886,0.00516985,84265.0,84264.0,0.415136]
[1742143161086,0.00016985,84265.0,84264.0,0.42367685]
[1742143161290,0.00016985,84265.0,84264.0,0.41767685]
[1742143161490,0.00016985,84265.0,84264.0,0.42267685]
[1742143161693,0.00016985,84265.0,84264.0,0.41767685]
[1742143162163,0.00516985,84265.0,84264.0,0.255216]
[1742143162319,0.00516985,84265.0,84264.0,0.409096]
[1742143163322,0.00516985,84265.0,84264.0,0.415096]
[1742143163500,0.00016985,84265.0,84264.0,0.41763685]
[1742143163708,0.00016985,84265.0,84264.0,0.42363685]
[1742143163935,0.00016985,84265.0,84264.0,0.42963685]
[1742143164341,0.00016985,84265.0,84264.0,0.42363685]
[1742143164549,0.00016985,84265.0,84264.0,0.42963685]
[1742143165301,0.00016985,84265.0,84264.0,0.42363685]
[1742143165477,0.00016985,84265.0,84264.0,0.42963685]
[1742143166055,0.00016985,84265.0,84264.0,0.42363685]
[1742143166903,2.5e-07,84270.0,84269.0,0.249201]
[1742143167077,2.5e-07,84270.0,84269.0,0.26374185]
[1742143167276,2.5e-07,84270.0,84269.0,0.56374185]
[1742143167981,2.5e-07,84270.0,84269.0,2.06974185]
[1742143168384,2.5e-07,84270.0,84269.0,2.15864185]
[1742143169891,2.5e-07,84270.0,84269.0,0.715001]
[1742143170041,2.5e-07,84270.0,84269.0,0.42954185]
[1742143171238,2.5e-07,84270.0,84269.0,0.45350869]
[1742143174082,2.5e-07,84270.0,84269.0,0.44746869]
[1742143174202,2.5e-07,84270.0,84269.0,0.44146869]
[1742143174402,2.5e-07,84270.0,84269.0,0.44746869]
[1742143174607,2.5e-07,84270.0,84269.0,0.45346869]
[1742143175104,0.00500025,84270.0,84269.0,0.012]
[1742143175312,0.00500025,84270.0,84269.0,0.023866]
[1742143176103,0.00500025,84270.0,84269.0,0.017866]
[1742143176420,0.00500025,84270.0,84269.0,0.023866]
[1742143176567,0.00500025,84270.0,84269.0,0.017866]
[1742143176775,0.00500025,84270.0,84269.0,0.011866]
[1742143176996,0.00500025,84270.0,84269.0,0.022866]
[1742143177408,0.00500025,84270.0,84269.0,0.016866]
[1742143177811,0.00500025,84270.0,84269.0,0.022866]
[1742143179119,2.5e-07,84270.0,84269.0,0.022866]
[1742143179330,0.00500025,84270.0,84269.0,0.022866]
[1742143179730,0.25419825,84270.0,84269.0,0.011]
[1742143179979,0.33469825,84270.0,84269.0,0.011]
[1742143180542,0.00500025,84270.0,84269.0,0.022866]
[1742143180743,0.25420125,84270.0,84264.0,0.000339]
[1742143180947,0.005,84265.0,84264.0,0.012206]
[1742143181383,0.0236024,84265.0,84264.0,0.012206]
[1742143182139,0.0236024,84265.0,84264.0,0.000339]
[1742143182348,0.2609484,84265.0,84264.0,0.000339]
[1742143182563,0.0236024,84265.0,84264.0,0.000339]
[1742143182762,0.0236024,84265.0,84264.0,0.003339]
[1742143183245,0.0354694,84265.0,84264.0,0.000339]
[1742143183604,0.0354694,84265.0,84264.0,0.004339]
[1742143183813,0.4159694,84265.0,84264.0,0.000339]
[1742143184186,0.4159694,84265.0,84264.0,0.003339]
[1742143184395,0.4159694,84265.0,84264.0,0.004339]
[1742143185838,0.4159694,84265.0,84264.0,0.002339]
[1742143186269,0.397367,84265.0,84264.0,0.005339]
[1742143187275,0.305,84265.0,84264.0,0.005339]
[1742143187475,0.005,84268.0,84267.0,0.011867]
[1742143187736,0.005,84268.0,84267.0,0.249205]
[1742143189124,0.005,84268.0,84267.0,0.254205]
[1742143189331,0.005,84268.0,84267.0,0.257205]
[1742143189733,0.005,84268.0,84267.0,0.005]
[1742143190118,0.005,84268.0,84267.0,0.011]
[1742143190525,0.005,84268.0,84267.0,0.016867]
[1742143190836,0.005,84268.0,84267.0,0.022867]
[1742143191035,0.005,84268.0,84267.0,0.011]
[1742143191260,0.016866,84268.0,84267.0,0.011]
[1742143191462,0.242338,84268.0,84267.0,0.011]
[1742143191832,0.254204,84268.0,84267.0,0.011]
[1742143192289,0.016866,84268.0,84267.0,0.011]
[1742143192703,0.03546918,84268.0,84264.0,0.237686]
[1742143192909,0.242346,84265.0,84264.0,0.000339]
[1742143193110,0.254213,84265.0,84264.0,0.000339]
[1742143193929,0.254213,84265.0,84264.0,0.004339]
[1742143194539,0.254213,84265.0,84264.0,0.000339]
[1742143194709,0.254213,84265.0,84264.0,0.003339]
[1742143195148,0.005,84265.0,84264.0,0.015206]
[1742143195327,0.005,84265.0,84264.0,0.252555]
[1742143195913,0.005,84265.0,84264.0,0.254555]
[1742143196317,0.005,84265.0,84264.0,0.249555]
[1742143197323,0.005,84265.0,84264.0,0.253555]
[1742143197742,0.005,84265.0,84264.0,0.000339]
[1742143198136,0.005,84265.0,84264.0,0.004339]
[1742143198748,0.005,84265.0,84264.0,0.016206]
[1742143199200,0.005,84265.0,84264.0,0.021206]
[1742143199513,0.005,84265.0,84264.0,0.017206]
[1742143199887,0.005,84265.0,84264.0,0.023206]
[1742143200253,0.02360281,84265.0,84264.0,0.023206]
[1742143200647,0.02360281,84265.0,84264.0,0.011339]
[1742143200999,0.03546981,84265.0,84264.0,0.011339]
[1742143201194,0.02360281,84265.0,84264.0,0.011339]
[1742143202210,0.02360281,84265.0,84264.0,0.006339]
[1742143202414,0.02360281,84265.0,84264.0,0.008339]
[1742143202696,0.02360281,84265.0,84264.0,0.002339]
[1742143202877,0.02360281,84265.0,84264.0,0.003339]
[1742143203077,0.02360281,84265.0,84264.0,0.017206]
[1742143203254,0.02360281,84265.0,84264.0,0.014206]
[1742143203459,0.02360281,84265.0,84264.0,0.012206]
[1742143203665,0.02360281,84265.0,84264.0,0.005339]
[1742143203941,0.02360281,84265.0,84264.0,0.021206]
[1742143204143,0.02360281,84265.0,84264.0,0.004339]
[1742143204396,0.02360281,84265.0,84264.0,0.006339]
[1742143204773,0.03546981,84265.0,84264.0,0.006339]
[1742143205381,0.02360281,84265.0,84264.0,0.006339]
[1742143205830,0.02360281,84265.0,84264.0,0.000339]
[1742143205993,0.02360281,84265.0,84264.0,0.006339]
[1742143206202,0.02360281,84265.0,84264.0,0.011339]
[1742143206501,0.02360281,84265.0,84264.0,0.006339]
[1742143206651,0.005,84265.0,84264.0,0.004339]
[1742143206852,0.005,84265.0,84264.0,0.009339]
[1742143207049,0.005,84265.0,84264.0,0.021206]
[1742143207545,0.005,84265.0,84264.0,0.012206]
[1742143207746,0.005,84265.0,84264.0,0.000339]
[1742143208592,0.005,84265.0,84264.0,0.012206]
[1742143208906,0.005,84265.0,84264.0,0.023206]
[1742143210075,0.02360243,84265.0,84264.0,0.023206]
[1742143210597,0.01860243,84265.0,84264.0,0.023206]
[1742143211006,0.01860243,84265.0,84264.0,0.03893348]
[1742143211214,0.01860243,84265.0,84264.0,0.09680497]
[1742143211422,8.3e-07,84268.0,84267.0,0.249207]
[1742143211658,8.3e-07,84268.0,84267.0,0.41722785]
[1742143213019,8.3e-07,84268.0,84267.0,0.42322785]
[1742143213375,8.3e-07,84268.0,84267.0,0.42922785]
[1742143214630,8.3e-07,84268.0,84267.0,0.45295511]
[1742143215011,8.3e-07,84268.0,84267.0,0.44695511]
[1742143215398,0.005,84298.0,84294.0,0.249127]
[1742143215578,0.00041253,84295.0,84294.0,0.41710785]
[1742143216571,0.00041253,84295.0,84294.0,0.42110785]
[1742143216779,5.3e-07,84295.0,84294.0,0.42110785]
[1742143217066,5.3e-07,84295.0,84294.0,0.42410785]
[1742143217854,5.3e-07,84295.0,84294.0,0.42110785]
[1742143218007,5.3e-07,84295.0,84294.0,1.91710785]
[1742143218438,5.3e-07,84295.0,84294.0,2.22910785]
[1742143218978,5.3e-07,84295.0,84294.0,2.23189442]
[1742143219196,0.0058,84309.0,84308.0,0.249086]
[1742143219345,0.00592358,84309.0,84308.0,0.26362685]
[1742143219542,0.00092358,84309.0,84308.0,0.26362685]
[1742143219752,0.00092358,84309.0,84308.0,1.76362685]
[1742143220142,0.00092358,84309.0,84308.0,1.77541693]
[1742143220344,0.00092358,84309.0,84308.0,1.89621693]
[1742143221175,0.00092358,84309.0,84308.0,2.37285799]
[1742143221389,0.0003396,84342.0,84308.0,2.37285799]
[1742143221390,1.8e-07,84313.0,84312.0,0.549074]
[1742143221609,0.005,84333.0,84332.0,0.249014]
[1742143221813,0.005,84333.0,84332.0,0.41687485]
[1742143222242,0.0003396,84342.0,84335.0,0.02639785]
[1742143222459,0.00012389,84336.0,84335.0,0.02758343]
[1742143223618,0.00012389,84336.0,84335.0,0.03139785]
[1742143224117,0.00012389,84336.0,84335.0,0.02639785]
[1742143224403,0.00012389,84336.0,84335.0,0.03239785]
[1742143224606,0.00012389,84336.0,84335.0,0.02639785]
[1742143224823,0.00012389,84336.0,84335.0,0.02758333]
[1742143225031,0.00012389,84336.0,84335.0,0.03645375]
[1742143225165,0.00012389,84336.0,84335.0,0.04245375]
[1742143225426,0.00012389,84336.0,84335.0,0.04126827]
[1742143225631,0.00012389,84336.0,84335.0,0.06469454]
[1742143225825,0.00012389,84336.0,84335.0,0.05869454]
[1742143226026,0.00512389,84336.0,84335.0,0.16528]
[1742143226252,0.00512389,84336.0,84335.0,0.017857]
[1742143226412,0.02370925,84336.0,84335.0,0.03239785]
[1742143226613,0.02370925,84336.0,84335.0,0.19167785]
[1742143226838,0.00512389,84336.0,84335.0,0.18567785]
[1742143227217,0.00012389,84336.0,84335.0,0.19186344]
[1742143227418,0.00012389,84336.0,84335.0,0.18467785]
[1742143227618,0.00012389,84336.0,84335.0,0.18567785]
[1742143227918,0.00012389,84336.0,84335.0,0.19286332]
[1742143228089,0.00012389,84336.0,84335.0,0.19167785]
[1742143228292,0.00012389,84336.0,84335.0,0.18567785]
[1742143228496,0.00012389,84336.0,84335.0,0.19167785]
[1742143228856,0.24226989,84336.0,84335.0,0.012]
[1742143229054,0.00512389,84336.0,84335.0,0.177097]
[1742143229265,0.00512389,84336.0,84335.0,0.171097]
[1742143229474,0.00512389,84336.0,84335.0,0.177097]
[1742143229898,0.02371026,84336.0,84335.0,0.171097]
[1742143230224,0.01871026,84336.0,84335.0,0.19163785]
[1742143230426,0.00012389,84336.0,84335.0,0.18563785]
[1742143230809,0.00012389,84336.0,84335.0,0.19163785]
[1742143231194,0.00012389,84336.0,84335.0,0.18563785]
[1742143231594,0.00012389,84336.0,84335.0,0.19163785]
[1742143231800,0.00012389,84336.0,84335.0,0.03239785]
[1742143232009,0.00512389,84336.0,84335.0,0.171057]
[1742143232432,0.00012389,84336.0,84335.0,0.165057]
[1742143232604,0.00512389,84336.0,84335.0,0.165057]
[1742143232958,0.00012389,84336.0,84335.0,0.17959785]
[1742143233216,0.00012389,84336.0,84335.0,0.18559785]
[1742143233383,0.00012389,84336.0,84335.0,0.17959785]
[1742143233751,0.00012389,84336.0,84335.0,0.19159785]
[1742143234112,0.00012389,84336.0,84335.0,0.18678342]
[1742143234673,0.00012389,84336.0,84335.0,0.18559785]
[1742143235119,0.00012389,84336.0,84335.0,0.19159785]
[1742143235730,0.00012389,84336.0,84335.0,0.18678333]
[1742143235887,0.00012389,84336.0,84335.0,0.18559785]
[1742143236313,0.005,84333.0,84325.0,0.237176]
[1742143236517,0.00012389,84336.0,84321.0,0.237187]
[1742143236518,0.005,84324.0,84321.0,0.237187]
[1742143236720,0.011858,84331.0,84308.0,0.01179008]
[1742143236721,0.005,84319.0,84318.0,0.011859]
[1742143236883,0.005,84319.0,84318.0,0.17955985]
[1742143237092,0.005,84319.0,84318.0,0.165019]
[1742143237626,0.005,84319.0,84318.0,0.17955985]
[1742143237877,0.005,84319.0,84318.0,0.18555985]
[1742143238097,0.005,84319.0,84318.0,1.68555985]
[1742143238484,0.005,84319.0,84318.0,1.69155985]
[1742143240134,0.005,84319.0,84318.0,1.67955985]
[1742143240308,0.005,84319.0,84318.0,1.68555985]
[1742143240485,0.005,84319.0,84318.0,1.69155985]
[1742143240689,0.005,84319.0,84318.0,1.67955985]
[1742143241102,0.254053,84319.0,84318.0,0.012]
[1742143241308,0.336553,84319.0,84318.0,0.012]
[1742143242623,0.336553,84319.0,84318.0,0.006]
[1742143242779,0.336553,84319.0,84318.0,0.007]
[1742143243683,0.336553,84319.0,84318.0,0.001]
[1742143243909,0.636553,84319.0,84318.0,0.003]
[1742143244903,0.636553,84319.0,84318.0,0.001]
[1742143245121,0.636553,84319.0,84318.0,0.002]
[1742143245536,0.336553,84319.0,84318.0,0.001]
[1742143246522,0.254053,84319.0,84318.0,0.001]
[1742143246719,0.005,84316.0,84315.0,0.01186]
[1742143247308,0.005,84314.0,84313.0,0.0003386]
[1742143248243,0.01686,84314.0,84313.0,0.0003386]
[1742143249475,0.01686,84314.0,84313.0,0.0023386]
[1742143250360,0.01686,84314.0,84313.0,0.0073386]
[1742143250723,0.01686,84314.0,84313.0,0.0023386]
[1742143251144,0.01686,84314.0,84313.0,0.0053386]
[1742143251705,0.33545242,84314.0,84313.0,0.0053386]
[1742143252776,0.33545242,84314.0,84313.0,0.0033386]
[1742143253758,0.33545242,84314.0,84313.0,0.0003386]
[1742143253913,0.33545242,84314.0,84313.0,0.0013386]
[1742143254533,0.33545242,84314.0,84313.0,0.0003386]
[1742143254727,0.33545242,84314.0,84313.0,0.0013386]
[1742143256153,0.33545242,84314.0,84313.0,0.0023386]
[1742143256362,0.33545242,84314.0,84313.0,0.0043386]
[1742143256954,0.33545242,84314.0,84313.0,0.0023386]
[1742143257157,0.33545242,84314.0,84313.0,0.0053386]
[1742143259938,0.31686,84314.0,84313.0,0.0053386]
[1742143260372,0.005,84314.0,84313.0,0.0053386]
[1742143261239,0.01686,84314.0,84313.0,0.0053386]
[1742143262526,0.005,84314.0,84313.0,0.0171986]
[1742143262735,0.005,84314.0,84313.0,0.029283]
[1742143262934,0.0001693,84319.0,84315.0,0.01186]
[1742143263133,0.0001693,84319.0,84318.0,0.26359685]
[1742143263617,0.0001693,84319.0,84318.0,0.54395685]
[1742143264032,3e-07,84319.0,84318.0,0.54395685]
[1742143264231,3e-07,84319.0,84318.0,0.84395685]
[1742143264610,3e-07,84319.0,84318.0,0.56747333]
[1742143265166,3e-07,84319.0,84318.0,0.57347333]
[1742143265358,0.0050003,84319.0,84318.0,0.29311333]
[1742143265560,0.0050003,84319.0,84318.0,0.42255685]
[1742143265763,0.0235887,84319.0,84318.0,0.42655685]
[1742143266167,0.0050003,84319.0,84318.0,0.18935985]
[1742143266330,0.0050003,84319.0,84318.0,0.18535985]
[1742143266534,0.0050003,84319.0,84318.0,0.176819]
[1742143267595,3e-07,84319.0,84318.0,0.176819]
[1742143268128,3e-07,84319.0,84318.0,0.18654572]
[1742143268332,3e-07,84319.0,84318.0,0.03958572]
[1742143268541,3e-07,84319.0,84318.0,0.27231985]
[1742143269509,0.0050003,84319.0,84318.0,0.18531985]
[1742143270340,0.0050003,84319.0,84318.0,0.17931985]
[1742143271094,0.0050003,84319.0,84318.0,0.03839985]
[1742143271297,0.0050003,84319.0,84318.0,0.19127985]
[1742143271651,0.0050003,84319.0,84318.0,0.18527985]
[1742143272403,0.0050003,84319.0,84318.0,0.19127985]
[1742143273666,3e-07,84319.0,84318.0,0.19127985]
[1742143274067,0.0050003,84319.0,84318.0,0.19127985]
[1742143274582,0.02358871,84319.0,84318.0,0.19127985]
[1742143274745,0.02358871,84319.0,84318.0,0.18527985]
[1742143274945,0.02358871,84319.0,84318.0,0.17927985]
[1742143275145,0.02358871,84319.0,84318.0,0.18527985]
[1742143275650,0.02358871,84319.0,84318.0,0.02654085]
[1742143275886,0.26078271,84319.0,84318.0,0.006]
[1742143276088,0.27264171,84319.0,84318.0,0.012]
[1742143276733,0.27264171,84319.0,84318.0,0.006]
[1742143276939,0.2540533,84319.0,84318.0,0.006]
[1742143277994,0.011859,84318.0,84313.0,0.0003386]
[1742143278201,0.0168593,84319.0,84318.0,0.003]
[1742143278492,0.0118593,84319.0,84318.0,0.005]
[1742143278654,0.0050003,84319.0,84318.0,0.002]
[1742143278912,0.0050003,84319.0,84318.0,0.0023386]
[1742143279130,0.0050003,84319.0,84318.0,0.0033386]
[1742143279753,0.0050003,84319.0,84318.0,0.0003386]
[1742143279972,0.01859136,84319.0,84318.0,0.0161976]
[1742143280184,0.01859136,84319.0,84318.0,0.03073845]
[1742143280185,0.02359136,84319.0,84318.0,0.03073845]
[1742143280367,0.0050003,84319.0,84318.0,0.03073845]
[1742143281132,0.0050003,84319.0,84318.0,0.02673845]
[1742143281529,0.0050003,84319.0,84318.0,0.03573845]
[1742143281834,0.0050003,84319.0,84318.0,0.03173845]
[1742143282180,0.0050003,84319.0,84318.0,0.03273845]
[1742143282329,0.0050003,84319.0,84318.0,0.03873845]
[1742143282956,3e-07,84319.0,84318.0,0.03992433]
[1742143283358,3e-07,84319.0,84318.0,0.03992425]
[1742143283782,3e-07,84319.0,84318.0,0.03873845]
[1742143286121,4.9e-07,84322.0,84321.0,0.249047]
[1742143286301,0.00512389,84336.0,84335.0,0.249006]
[1742143286531,0.00512389,84336.0,84335.0,0.26354685]
[1742143287798,0.00012389,84336.0,84335.0,0.27566379]
[1742143288217,0.00512389,84336.0,84335.0,0.27566379]
[1742143288672,0.00512389,84336.0,84335.0,0.26954685]
[1742143288884,0.00512389,84336.0,84335.0,0.255006]
[1742143289619,0.00512389,84336.0,84335.0,0.006]
[1742143290265,0.00512389,84336.0,84335.0,0.011]
[1742143290467,0.00512389,84336.0,84335.0,0.022857]
[1742143290579,0.00512389,84336.0,84335.0,0.005]
[1742143290995,0.00512389,84336.0,84335.0,0.01]
[1742143291397,0.00512389,84336.0,84335.0,0.021857]
[1742143291599,0.00512389,84336.0,84335.0,0.016857]
[1742143292085,0.00512389,84336.0,84335.0,0.020857]
[1742143293177,0.00512389,84336.0,84335.0,0.009]
[1742143294438,0.00512389,84336.0,84335.0,0.020857]
[1742143296486,0.00512389,84336.0,84335.0,0.011857]
[1742143296689,0.00512389,84336.0,84335.0,0.016857]
[1742143296896,0.00512389,84336.0,84335.0,0.022857]
[1742143297293,0.00512389,84336.0,84335.0,0.03739785]
[1742143298298,0.00012389,84336.0,84335.0,0.03858348]
[1742143299195,0.00012389,84336.0,84335.0,0.06233151]
[1742143299606,1e-06,84349.0,84348.0,0.248967]
[1742143299811,1e-06,84349.0,84348.0,0.49820785]
[1742143300001,1e-07,84353.0,84352.0,0.26349685]
[1742143301681,6e-07,84361.0,84354.0,0.24895]
[1742143301888,0.01858022,84364.0,84354.0,0.24895]
[1742143301889,0.005,84372.0,84366.0,0.248915]
[1742143302096,0.005,84372.0,84366.0,0.41601585]
[1742143302340,0.00046309,84367.0,84366.0,0.41601585]
[1742143302862,9e-08,84367.0,84366.0,0.42807083]
[1742143303042,9e-08,84367.0,84366.0,0.47477083]
[1742143303264,9e-08,84367.0,84366.0,0.48077083]
[1742143303405,9e-08,84367.0,84366.0,0.47477083]
[1742143303609,9e-08,84367.0,84366.0,0.77477083]
[1742143304823,4.9e-07,84381.0,84379.0,0.248876]
[1742143305027,0.00041203,84381.0,84380.0,0.02757669]
[1742143305233,3e-08,84381.0,84380.0,0.10847669]
[1742143305932,3e-08,84381.0,84380.0,0.02639185]
[1742143306611,3e-08,84381.0,84380.0,0.36654844]
[1742143306753,0.0058,84389.0,84388.0,0.24885]
[1742143306951,0.0058,84389.0,84388.0,0.26339085]
[1742143307669,1e-06,84389.0,84388.0,0.26339085]
[1742143307869,1e-06,84389.0,84381.0,0.23702]
[1742143307870,0.005,84406.0,84397.0,0.236974]
[1742143308072,0.005,84406.0,84403.0,0.236958]
[1742143308073,0.00029271,84404.0,84403.0,0.236958]
[1742143308276,0.00029271,84404.0,84403.0,0.25149885]
[1742143308476,0.00029271,84404.0,84403.0,0.26334585]
[1742143309685,0.00029271,84404.0,84403.0,0.26934585]
[1742143309920,0.00029271,84404.0,84403.0,0.28127372]
[1742143310098,7.1e-07,84404.0,84403.0,0.28127372]
[1742143310453,0.0127455,84420.0,84419.0,0.248758]
[1742143310658,0.0127455,84420.0,84419.0,0.41573885]
[1742143310863,0.0008,84429.0,84428.0,0.26327285]
[1742143311426,0.0008,84429.0,84428.0,0.248732]
[1742143311923,0.0008,84429.0,84428.0,0.26327285]
[1742143312302,1e-06,84429.0,84428.0,0.26327285]
[1742143312518,1e-06,84429.0,84426.0,0.236891]
[1742143312722,1e-06,84429.0,84425.0,0.248735]
[1742143312723,1e-06,84429.0,84428.0,0.005]
[1742143312897,1e-06,84429.0,84428.0,0.241888]
[1742143313079,1e-06,84429.0,84428.0,0.005]
[1742143313275,1e-06,84429.0,84428.0,0.016844]
[1742143313485,1e-06,84429.0,84428.0,0.022844]
[1742143313693,1e-06,84429.0,84428.0,0.016844]
[1742143313944,1e-06,84429.0,84428.0,0.022844]
[1742143314541,1e-06,84429.0,84428.0,0.017844]
[1742143315257,0.0001701,84429.0,84428.0,0.02638485]
[1742143315664,0.0001701,84429.0,84428.0,0.18474485]
[1742143315920,0.0001701,84429.0,84428.0,0.17874485]
[1742143316115,0.0001701,84429.0,84428.0,0.17992907]
[1742143316351,0.0001701,84429.0,84428.0,0.18592907]
[1742143316546,0.0001701,84429.0,84428.0,0.20240786]
[1742143316973,1e-07,84429.0,84428.0,0.25759194]
[1742143317181,1e-07,84429.0,84428.0,0.25640786]
[1742143317322,1e-07,84429.0,84428.0,0.55640786]
[1742143318062,1e-07,84429.0,84428.0,2.05640786]
[1742143318449,1e-07,84429.0,84428.0,0.55640786]
[1742143318647,1e-07,84429.0,84428.0,0.10404786]
[1742143318863,1e-07,84429.0,84428.0,0.21436786]
[1742143319260,1e-07,84429.0,84428.0,0.20236786]
[1742143319484,1e-07,84429.0,84428.0,0.20836786]
[1742143319886,1e-07,84429.0,84428.0,0.20236786]
[1742143320045,1e-07,84429.0,84428.0,0.20836786]
[1742143320253,1e-07,84429.0,84428.0,0.170124]
[1742143320454,1e-07,84429.0,84428.0,0.164124]
[1742143320654,1e-07,84429.0,84428.0,0.170124]
[1742143320889,1e-07,84429.0,84428.0,0.15828]
[1742143321089,0.2487291,84429.0,84428.0,0.006]
[1742143321288,0.3242291,84429.0,84428.0,0.006]
[1742143322108,0.3242291,84429.0,84407.0,0.15228]
[1742143322109,0.011845,84418.0,84406.0,0.02329742]
[1742143322305,0.248796,84406.0,84405.0,0.00897513]
[1742143322461,0.011846,84410.0,84405.0,0.00897513]
[1742143322663,0.248791,84409.0,84405.0,0.00897513]
[1742143322868,0.248794,84408.0,84405.0,0.00897513]
[1742143323151,0.248794,84408.0,84399.0,0.011848]
[1742143323357,0.248794,84408.0,84402.0,0.011848]
[1742143323573,0.248794,84408.0,84399.0,0.011848]
[1742143323574,0.011847,84407.0,84399.0,0.011848]
[1742143323782,0.236919,84417.0,84383.0,0.01185]
[1742143323783,0.236994,84391.0,84383.0,0.01185]
[1742143324042,0.01185,84386.0,84382.0,0.15224]
[1742143324235,0.011849,84389.0,84384.0,0.11848843]
[1742143324433,0.248847,84389.0,84384.0,0.35549943]
[1742143324965,0.248853,84388.0,84384.0,0.00012341]
[1742143325241,0.01185,84385.0,84384.0,0.00012341]
[1742143325440,0.237003,84387.0,84384.0,0.00012341]
[1742143326024,0.03042606,84388.0,84384.0,0.00312341]
[1742143326235,0.01857606,84388.0,84384.0,0.23713441]
[1742143326460,0.01857606,84388.0,84384.0,0.01231161]
[1742143327235,0.01185,84385.0,84384.0,0.00446161]
[1742143327661,0.38735,84385.0,84384.0,0.00446161]
[1742143328429,0.38735,84385.0,84384.0,0.00046161]
[1742143328645,0.4373498,84385.0,84384.0,0.00046161]
[1742143329129,0.44951246,84385.0,84384.0,0.00446161]
[1742143329508,0.45451246,84385.0,84384.0,0.00446161]
[1742143329711,0.253871,84381.0,84380.0,8.1e-07]
[1742143329937,0.011855,84350.0,84343.0,0.237126]
[1742143330104,0.248937,84359.0,84352.0,0.237101]